Cogmind - Beta 16.1 @@@ ROGUE MODE // 2026.03.07 @ 14:24:04 Player: JuustuToug Result: Destroyed by S-10 Pest with Light Assault Rifle Performance ------------- Evolutions (0) 0 Regions Visited (1) 200 Robots Destroyed (23) 115 Value Destroyed (328) 328 Prototype IDs (0) 0 Alien Tech Used (0) 0 Bonus (0) 0 TOTAL SCORE: 643 Bonus ------- None Cogmind --------- Core Integrity 0/250 Matter 234/300 Energy 60/250 System Corruption 0% Temperature Warm (157) Movement Rolling (100) Location -10/Materials Parts ------- > --- POWER (1) -------- Ion Engine > --- PROPULSION (2) --- Compact Wheel > --- UTILITY (2) ------ Small Storage Unit > --- WEAPON (2) ------- Medium Laser Light Assault Rifle > --- INVENTORY (8) ---- Heat Sink Improved Terrain Scanner Seismic Detector Medium Laser Small Laser Peak State ------------ > --- POWER ------------ Ion Engine > --- PROPULSION ------- Light Treads Light Treads > --- UTILITY ---------- Small Storage Unit Seismic Detector > --- WEAPON ----------- Medium Laser Assault Rifle > --- INVENTORY -------- Ion Engine Ion Engine Heat Sink Improved Terrain Scanner Medium Laser Small Laser Light Assault Rifle Mining Claw [Rating: 8] Favorites ----------- Power Ion Engine Engine Ion Engine Propulsion Light Treads Treads Light Treads Leg Aluminum Leg Wheel Wheel Utility Small Storage Unit Device Seismic Detector Storage Small Storage Unit Weapon Medium Laser Energy Gun Medium Laser Ballistic Gun Assault Rifle Build | -11 -10 ------- Run | Yrd Mat Slots Evolved . | . . Power . | . . Propulsion . | . . Utility . | . . Weapon . | . . Parts Attached 14 | 7 7 Power 3 | 1 2 Engine 3 | 1 2 Core . | . . Reactor . | . . Propulsion 5 | 2 3 Treads 2 | 2 . Leg 1 | . 1 Wheel 2 | . 2 Hover . | . . Flight . | . . Utility 2 | 2 . Device 1 | 1 . Storage 1 | 1 . Processor . | . . Hackware . | . . Protection . | . . Artifact . | . . Weapon 4 | 2 2 Energy Gun 2 | 1 1 Energy Cannon . | . . Ballistic Gun 2 | 1 1 Ballistic Cannon . | . . Launcher . | . . Special Weapon . | . . Impact Weapon . | . . Slashing Weapon . | . . Piercing Weapon . | . . Special Melee Weapon . | . . Unidentified Prototypes . | . . Parts Lost 6 | . 6 Power 1 | . 1 Propulsion 3 | . 3 Utility 1 | . 1 Weapon 1 | . 1 Highest Loss Streak 4 | . 4 To Critical Strikes . | . . Average Backups 5 | 1 6 Power . | . 1 Propulsion . | . . Utility 1 | . 1 Weapon 2 | . 3 Tool/Special . | . . Unused Backups 5 | . 5 Power . | . . Propulsion . | . . Utility 3 | . 3 Weapon 2 | . 2 Tool/Special . | . . Average Slot Usage (%) 98 | . 98 Engine 13 | . 13 Treads 20 | . 20 Leg 1 | . 1 Wheel 4 | . 4 Device 13 | . 13 Storage 14 | . 14 Energy Gun 14 | . 14 Ballistic Gun 14 | . 14 Peak Build Rating 8 | 7 8 Average Rating 6 | 5 7 On Entrance 3 | . 7 Avg Prop Armor Cover (%) 10 | . 10 Naked Turns . | . . Heaviest Build 15 | 15 15 Greatest Support 40 | 40 40 Greatest Overweight (x) 1 | . 1 Average Overweight (x) . | . . Largest Inventory Capacity 8 | 8 8 Average Capacity 7 | 7 8 Most Carried 8 | 3 8 Average Carried 5 | 1 6 Final Capacity 8 | 8 8 Final Carried 5 | 3 5 Class Distribution -------------------- 100% | Mutant Dominant Class ---------------- Mutant | -10/Materials Resources | -11 -10 ----------- Run | Yrd Mat Matter Collected 428 | 221 207 Remotely . | . . Salvage Created 656 | 175 481 Parts 47 | 17 30 Haulers Intercepted . | . . Recyclers Shooed 2 | 1 1 Parts Field Recycled . | . . Retrieved Matter . | . . Parts Self-Destructed . | . . Prevented . | . . Parts Restored . | . . Kills | -11 -10 ------- Run | Yrd Mat Combat Hostiles Destroyed 12 | . 12 Guns 12 | . 12 Classes Destroyed 6 | 3 3 Worker 3 | 2 1 Tunneler 4 | 4 . Recycler 2 | 1 1 Watcher 2 | . 2 Swarmer 7 | . 7 Grunt 5 | . 5 Best Kill Streak 5 | 5 5 Combat Bots Only 5 | . 5 Max Kills in Single Turn 2 | 2 1 Gunslinging . | . . Exploded . | . . Melee . | . . Uniques/NPCs Destroyed . | . . Combat | -11 -10 -------- Run | Yrd Mat Hostile Shots Fired 105 | . 105 Missed 22 | . 22 Hits 83 | . 83 Projectile 83 | . 83 Damage Taken 965 | . 965 Core 252 | . 252 Absorbed by Shields . | . . Core Remaining (%) 100 | 100 . Volleys Fired 63 | 11 52 Largest 2 | 2 2 Hottest 100 | 70 100 Shots Fired 126 | 22 104 Gun 126 | 22 104 Cannon . | . . Launcher . | . . Special . | . . Kinetic 62 | 11 51 Thermal 64 | 11 53 Explosive . | . . Electromagnetic . | . . Robot Hit Streak 11 | 8 11 Robot Miss Streak 3 | 1 3 Penetration Max . | . . Secondary Targets 2 | . 2 Max Gunslinging Chain 1 | . 1 Shots Hit Robots 76 | 14 62 Core Hits 32 | 8 24 Critical Kills . | . . Critical Parts Destroyed 1 | . 1 Critical Strikes 11 | 3 8 Burn 10 | 3 7 Destroy 1 | . 1 Melee Attacks . | . . Impact . | . . Slashing . | . . Piercing . | . . Sneak Attacks . | . . Combat Hostiles . | . . Follow-up Attacks . | . . Damage Inflicted 951 | 188 763 Guns 951 | 188 763 Cannons . | . . Explosions . | . . Melee . | . . Ramming . | . . Kinetic 416 | 88 328 Thermal 535 | 100 435 Explosive . | . . Electromagnetic . | . . Impact . | . . Slashing . | . . Piercing . | . . Highest Corruption . | . . Average Corruption . | . . Corruption Purged . | . . Corruption Blocked . | . . Overload Shots . | . . Overflow Damage . | . . Projectiles . | . . Explosions . | . . Melee . | . . Knockbacks . | . . Impact . | . . Kinetic . | . . Secondary . | . . Self-Inflicted Damage . | . . Shots . | . . Rammed . | . . Targets Rammed . | . . Kicked . | . . Crushed . | . . Highest Temperature 196 | 81 196 Average Temperature 55 | 36 59 Received Heat Transfer 153 | . 153 Siege Activations . | . . Martial Activations . | . . Shielding Activations . | . . Robots Disrupted . | . . Combat Hostiles . | . . Robots Corrupted . | . . Combat Hostiles . | . . Parts Fried . | . . Impact Corruptions . | . . Robots Melted . | . . Combat Hostiles . | . . Parts Melted 3 | . 3 Heat Transferred 2331 | 518 1813 Parts Sabotaged . | . . Parts Stolen . | . . Parts Stripped . | . . Power Chain Reactions . | . . Alert | -11 -10 ------- Run | Yrd Mat Maximum Alert Level . | . . Low Security (%) 100 | 100 100 Level 1 . | . . Level 2 . | . . Level 3 . | . . Level 4 . | . . Level 5 . | . . High Security . | . . Max Security . | . . Peak Influence 169 | 15 169 Initial 6 | . 6 Average 51 | 2 60 Influence Increases 464 | 35 429 Destroy 0b10 Robot/C 240 | . 240 Destroy 0b10 Robot/NC 55 | 35 20 Destroy Leader 64 | . 64 Successful Hack 12 | . 12 Select Force Hacks 60 | . 60 Destroy Structure 3 | . 3 Lose Combat Pursuer 30 | . 30 Influence Decreases 315 | 25 290 Entered New Map 4 | . 4 Time Decay 251 | 25 226 Lost Part 60 | . 60 Squads Dispatched 2 | . 2 Investigation 2 | . 2 Extermination . | . . Reinforcement . | . . Assault . | . . Garrison . | . . Intercept . | . . Searches Triggered . | . . Construction Impeded . | . . Haulers Reinforced . | . . Active Scanning Responses . | . . Cargo Convoy Interrupts . | . . Stealth | -11 -10 --------- Run | Yrd Mat Distress Signals 1 | . 1 Communications Jammed . | . . Distress Signals . | . . Times Spotted 22 | . 22 Peak Tracking Total 8 | . 8 Tactical Retreats 2 | . 2 Traps | -11 -10 ------- Run | Yrd Mat Traps Triggered . | . . Indirectly . | . . Trap Hack Attempts . | . . Triggered . | . . Disarmed . | . . Reprogrammed . | . . Reused . | . . Traps Extracted . | . . Installed . | . . Triggered . | . . Machines | -11 -10 ---------- Run | Yrd Mat Machines Disabled . | . . Max in Single Turn . | . . Machines Repaired . | . . Machines Dismantled . | . . Machines Sabotaged . | . . Overloaded Fab Kills . | . . Hacking | -11 -10 --------- Run | Yrd Mat Machines Accessed 5 | . 5 Terminals 3 | . 3 Fabricators . | . . Repair Stations . | . . Recycling Units 2 | . 2 Scanalyzers . | . . Garrison Access . | . . Total Hacks 14 | . 14 Successful 9 | . 9 Failed 5 | . 5 Catastrophic . | . . Database Lockouts . | . . Manual 13 | . 13 Terminals 12 | . 12 Fabricators . | . . Repair Stations . | . . Recycling Units 2 | . 2 Scanalyzers . | . . Garrison Access . | . . Terminal Hacks 1 | . 1 Terminal Index 1 | . 1 Fabricator Hacks . | . . Repair Station Hacks . | . . Recycling Unit Hacks . | . . Scanalyzer . | . . Garrison Access Hacks . | . . Unauthorized Hacks 8 | . 8 Terminals 6 | . 6 Botnet 2 | . 2 Operators 1 | . 1 Skim 3 | . 3 Fabricators . | . . Repair Stations . | . . Recycling Units 2 | . 2 Tunnel 2 | . 2 Scanalyzers . | . . Garrison Access . | . . Data Cores Recovered . | . . Used . | . . Hacking Detections 3 | . 3 Full Trace Events . | . . Feedback Events . | . . Feedback Blocked . | . . Robot Schematics Acquired . | . . Robots Built . | . . Authchips . | . . Time . | . . Total Robot Build Rating . | . . Part Schematics Acquired . | . . Parts Built . | . . Authchips . | . . Time . | . . Total Part Build Rating . | . . Part Studies Acquired . | . . Parts Repaired . | . . Time . | . . Parts Recycled . | . . Recycled Matter . | . . Retrieved Matter . | . . Retrieved Components . | . . Parts Scanalyzed . | . . Part Schematics Acquired . | . . Parts Damaged . | . . Bothacking | -11 -10 ------------ Run | Yrd Mat Used RIF Installer . | . . Robots Hacked . | . . Non-combat . | . . Combat . | . . Robot Hacks Applied . | . . Relay Couplers Released . | . . Fabnet Peak Effective % . | . . Robots Rewired . | . . Allies Hacked . | . . Hacks Repelled . | . . Allies | -11 -10 -------- Run | Yrd Mat Total Allies . | . . Largest Group . | . . Highest-Rated Group . | . . Highest-Rated Ally . | . . Total Orders . | . . Ally Attacks . | . . Total Damage . | . . Kills . | . . Allies Corrupted . | . . Allies Melted . | . . Intel | -11 -10 ------- Run | Yrd Mat Active Infowar (turns) 604 | 20 584 Seismic 604 | 20 584 Robot Analysis Total . | . . Derelict Logs Recovered . | . . Drone Launches . | . . Drone Recoveries . | . . Exploration | -11 -10 ------------- Run | Yrd Mat Turns Passed 700 | 106 594 Spaces Moved 337 | 38 299 Core 1 | 1 . Treads 208 | 37 171 Legs . | . . Wheels 128 | . 128 Hover . | . . Flight . | . . Fastest Speed 50 | 50 95 Average Speed 135 | 157 132 Slowest Speed 160 | 160 160 Overloaded Moves . | . . Propulsion Burnouts . | . . Robots Hopped . | . . Potential Cave-ins . | . . Cave-ins Triggered . | . . Exploration Rate (%) 32 | 3 62 Regions Visited 1 Branch Regions . Pre-discovered Areas 2 | . 2 Known Exits Taken . | . . Unknown Exits Taken 1 | 1 . Scrap Searched . | . . Spaces Dug . | . . Terrain Destroyed . | . . Melee . | . . Projectile . | . . AOE . | . . Terrain Rammed . | . . Walls Destroyed . | . . Machines Disabled . | . . Actions | -11 -10 --------- Run | Yrd Mat Total 455 | 59 396 Wait 27 | 1 26 Move 336 | 37 299 Hop . | . . Pick Up 9 | 3 6 Fast Attach 9 | 7 2 Attach 3 | . 3 Detach . | . . Swap 5 | . 5 Drop 3 | . 3 Fire 63 | 11 52 Melee . | . . Ram . | . . Kick . | . . Crush . | . . Escape Stasis . | . . Rewire . | . . Trap . | . . Miscellaneous . | . . Route ------- -11/Scrapyard -10/Materials (discovered 2 exits: [*Mat] / [*Min]) History --------- Turn | Location | Event 13 | -11/Scrapyard | Discovered new exit (range 16) 107 | -11/Scrapyard | Entered Materials 317 | -10/Materials | Build established: Mutant 417 | -10/Materials | Core integrity fell below 50% 514 | -10/Materials | Discovered new exit (range 7) 541 | -10/Materials | Discovered new exit (range 9) 680 | -10/Materials | Core integrity fell below 20% 701 | -10/Materials | Destroyed by S-10 Pest with Light Assault Rifle Last Messages --------------- 00624_ S-10 Pest destroyed. 00627_ Acquired 13 matter. 00636_ U-05 Engineer builds a Door. 00643_ K-01 Serf collects debris. 00654_ S-10 Pest suffers critical hit (Burn). 00654_ Lgt. Ion Engine melted. 00654_ S-10 Pest destroyed. 00654_ Switching to secondary target: S-10 Pest. 00659_ S-10 Pest destroyed. 00667_ Switching to secondary target: S-10 Pest. 00674_ Wheel destroyed. 00675_ Lgt. Treads destroyed. 00678_ Destroyed Flight Unit. 00678_ S-10 Pest suffers critical hit (Burn). 00683_ S-10 Pest heat spikes uncontrollably. 00684_ Melted Lgt. Assault Rifle. 00684_ S-10 Pest destroyed. 00691_ Seismic Detector destroyed. 00693_ Acquired 19 matter. 00696_ Ion Engine destroyed. Map ----- +----------------------------------------------------+ | | | ?????????????????????????????????????????? | | ?????????????????????????????????????????? | | ?????????????????????????????????????????? | | ?????????????????????????????????????????? | | ?????????????????????????????????????????? | | ?????????????????????????????????????????? | | ?????????????????????????????????????????? | | ?????????????????????????????????????????? | | ?????????????????????????????????????????? | | ?????????????????????????????????????????? | | ?????????????????????????????????????????? | | ?????????????????????????????????????????? | | ?????????????????????????????????????????? | | ?????????????????????????????????????????? | | ?????????????????????????????????????????? | | ???????????###?######????????????????????? | | ???????????# #????????????????????? | | ???????????# ! """ #????????????????????? | | ???????????#a """ #######?????? #??????? | | ???????????# """ # ##### #??????? | | ???????????# =[#= #??????? | | ???????????# """*+%! #??????? | | ???????????# """%# +??????? | | ???????????# g"""=# ##### #??????? | | ???????????# [%s@g%## ##??????????????? | | ???????????###+####### #???????????????? | | ?????????????????????# #???????????????? | | ?????????????????????# #???????????????? | | ?????????????????????# #??????????? ?? | | ???????????### #?????# #??????????# ?? | | ???????????# ##### #??????????# #? | | ???????????# ! #??????????# #? | | ???????????# #??????????# #? | | ???????????# ############ ## | | ???????????# ###### ## ##""" # | | ???????????#####??????# ##/ ! ##" # | | ??????????????????????# ## ##"! # | | ????????????????####### ## ##"" < # | | ???????????????## # #####+####"! # | | ???????????????# # ##### #??#" # | | ??????????????#########+### # #????"" # | | ??????????????# # % ### ###???# ## | | ??????????????# # # ##### # | | ??????????????# # # ^ + | | ??????????????# # + # | | ???????????????## # # | | ???????????????## # #### | | ???????????????## # ^ #??# | | ????????????????# # "" #??# | +----------------------------------------------------+ Best States ------------- Heat Dissipation 25 Energy Generation 10 Energy Capacity 250 Matter Stores 300 Matter Capacity 300 Sight Range 16 Terrain Scan Density 10 Evasion (%) 41 Recoil Reduction 2 Item Schematics ----------------- None Robot Schematics ------------------ None Fabricated ------------ Nothing Repaired ---------- Nothing Studied --------- None Alien Tech Used ----------------- None Achievements -------------- None Challenges ------------ None Game ------ Seed NavigationKineticDerivative Manual? 0 Play Time 00:08:01 Cumulative 372.5 hours Start 2026.03.07 @ 14:19:24 End 2026.03.07 @ 14:24:04 Sessions 1 Manual Loads 0 Difficulty Rogue Special Mode None Game No. 232 Rogue 232 Adventurer 0 Explorer 0 Win Type - Total 14 Types 9/1/2/1/0/0/0/1/0/0 Lore% 93 Gallery% 80 Achievement% 70 Wizard Run 0 Options --------- Layout 1 ASCII 0 Keyboard 0 Movement Mouse Keybinds 0 Fullscreen 2 Font 32/SmallcapsGlow Map View 50x35 Zoom Use 0% Tactical HUD 1 Map Filters NONE Filters NONE Steam 1 RUN: 3e781b8a-7e0a-4679-bbc6-f2351cbffe12